Workbook

Sheet Menu
A3: Datum | B3: 2023-02-23 | D3: Menu Angaben wie folgt machen: | H3: Kg | I3: 0.25
H4: Lt | I4: 1.25
A5: Vorspeise 1 | B5: Leberknödelsuppe | D5: alle weiteren Angaben ausschreiben | H5: EL | I5: Esslöffel
H6: TL | I6: Teelöffel
A7: Vorspeise 2 | B7: Blutwurst-Ravioli mit Zwiebelschmelze | H7: Bund | I7: 1
H8: Stk | I8: Stück
A9: Hauptgang | B9: Flank Steak | H9: Pä | I9: Päckli
A11: Beilage | B11: Ofengemüse
A13: Dessert | B13: Quarkkeulchen
A15: Diverses
A17: Menu von Tisch | B17: B
A19: Personenzahl | B19: 16

Sheet Vorspeise 1
E1: Chochete vom | F1: =SUM(Menu!B3) -> 2023-02-23 | I1: Original Rezept
A2: =Menu!B5 -> Leberknödelsuppe | E2: Rezept für | F2: 5 | I2: 6 | J2: Personen | L2: Menu Angaben wie folgt machen:
A3: Menge | B3: Einheit | C3: Artikel (Gewicht alles ca. Angaben) | D3: Bemerkungen | E3: Einkaufspreis | F3: Betrag | I3: Originalrezept | J3: pro Person
A4: =ROUND(SUM(J4*$F$2),2) -> 0.21 | B4: kg | C4: Kalbsleber (gewolft) | F4: =SUM(E4*A4) -> 0 | I4: 0.25 | J4: =I4/$I$2 -> 0.04166666667 | L4: Kg | M4: 0.25
A5: 0.83 | B5: Stk | C5: Brötchen vom Vortag | D5: in heisser Milch einweichen | F5: =SUM(E5*A5) -> 0 | I5: 1 | J5: 0.1666666667 | L5: Lt | M5: 1.25
A6: 0.02 | B6: kg | C6: Butter | F6: 0 | I6: 0.02 | J6: 0.003333333333 | L6: EL | M6: Esslöffel
A7: 0.83 | B7: Stk | C7: Zwiebel | F7: 0 | I7: 1 | J7: 0.1666666667 | L7: TL | M7: Kaffeelöffel
A8: 0.83 | B8: Stk | C8: Knoblauchzehen | F8: 0 | I8: 1 | J8: 0.1666666667 | L8: Bund | M8: 1
A9: 1.67 | B9: Stk | C9: Eier | F9: 0 | I9: 2 | J9: 0.3333333333 | L9: Stk | M9: Stück
A10: 0.42 | B10: Bund | C10: Petersilie | F10: 0 | I10: 0.5 | J10: 0.08333333333 | L10: Pä | M10: Päckli
A11: 0 | F11: 0 | J11: 0 | L11: alles weitere ausschreiben
A12: =ROUND(SUM(J12*$F$2),2) -> 0 | C12: Möhre, Lauch grob geschnitten | F12: 0 | J12: 0
A13: 0 | F13: 0 | J13: 0
A14: 0 | C14: Salz, Pfeffer, Muskat | F14: 0 | J14: 0
A15: 0 | C15: Majoran | F15: 0 | J15: 0
A16: 0 | C16: Zitronenschale (Bio) | F16: 0 | J16: 0
A17: 0 | C17: Semmelbrösel | F17: 0 | J17: 0
A18: 1.67 | B18: Ltr | C18: Fleischbrühe mit Rinderfond | F18: 0 | I18: 2 | J18: 0.3333333333
A19: 0.83 | B19: Bund | C19: Schnittlauch | F19: 0 | I19: 1 | J19: =I19/$I$2 -> 0.1666666667
A20: 0 | F20: 0 | J20: 0
A21: Zubereitung
A22: Zwiebel und Knoblauch in der Butter hellgelb rösten und Petersilie kurz mit unterrühren
A23: Eingeweichtes Brötchen ausdrücken
A24: Leber mit dem Zwiebel-Knoblauchgemisch, dem Brötchen, den Eiern und der Zitronenschale vermengen
A25: kräftig mit Gewürzen abschmecken
A26: Teigmasse mit Semmelbröseln andicken (Vorsicht, der Teig sollte nicht zu fest sein)
A27: Teig ca. eine halbe Stunde ruhen lassen
A28: In der Zwischenzeit die Fleischbrühe zum kochen bringen
A29: Suppengemüse weichgaren. Leberknödel mit Esslöffel
A30: abstechen und etwa 10 Minunten ziehen lassen
A31: Schnittlauch in feine Röllchen schneiden zum garnieren

Sheet Vorspeise 2
E1: Chochete vom | F1: =SUM(Menu!B3) -> 2023-02-23 | I1: Original Rezept
A2: =Menu!B7 -> Blutwurst-Ravioli mit Zwiebelschmelze | E2: Rezept für | F2: 5 | I2: 10 | J2: Personen | L2: Menu Angaben wie folgt machen:
A3: Menge | B3: Einheit | C3: Artikel (Gewicht alles ca. Angaben) | D3: Bemerkungen | E3: Einkaufspreis | F3: Betrag | I3: Originalrezept | J3: pro Person
A4: =ROUND(SUM(J4*$F$2),2) -> 0.15 | B4: kg | C4: Mehl | F4: =SUM(E4*A4) -> 0 | I4: 0.3 | J4: =I4/$I$2 -> 0.03 | L4: Kg | M4: 0.25
A5: 0.15 | B5: kg | C5: Gries | F5: 0 | I5: 0.3 | J5: 0.03 | L5: Lt | M5: 1.25
A6: 3 | B6: Stk | C6: Eier | F6: =SUM(E6*A6) -> 0 | I6: 6 | J6: 0.6 | L6: EL | M6: Esslöffel
A7: 1 | B7: El | C7: Olivenöl | F7: =SUM(E7*A7) -> 0 | I7: 2 | J7: 0.2 | L7: TL | M7: Kaffeelöffel
A8: 0.5 | B8: Tl | C8: Salz | F8: =SUM(E8*A8) -> 0 | I8: 1 | J8: 0.1 | L8: Bund | M8: 1
A9: 0 | F9: 0 | J9: 0 | L9: Stk | M9: Stück
A10: 0.3 | B10: kg | C10: Blutwurst | F10: 0 | I10: 0.6 | J10: 0.06 | L10: Pä | M10: Päckli
A11: 2 | B11: Stk | C11: Schalotten | F11: 0 | I11: 4 | J11: 0.4 | L11: alles weitere ausschreiben
A12: 1 | B12: Stk | C12: Knoblauchzehen | F12: 0 | I12: 2 | J12: 0.2
A13: 0 | C13: Olivenöl | F13: 0 | J13: 0
A14: 0 | C14: Majoran, Kümmel, Salz | F14: 0 | J14: 0
A15: 0.02 | B15: kg | C15: Butter | F15: 0 | I15: 0.03 | J15: 0.003
A16: =ROUND(SUM(J16*$F$2),2) -> 0 | F16: 0 | J16: 0
A17: =ROUND(SUM(J17*$F$2),2) -> 3 | B17: Stk | C17: Zwiebeln | D17: nach belieben | F17: 0 | I17: 6 | J17: 0.6
A18: =ROUND(SUM(J18*$F$2),2) -> 0.08 | B18: Ltr | C18: Kalbsfond | F18: 0 | I18: 0.15 | J18: 0.015
A19: =ROUND(SUM(J19*$F$2),2) -> 0 | C19: Majoran | F19: 0 | J19: 0
A20: =ROUND(SUM(J20*$F$2),2) -> 0 | C20: weisser Pfeffer | F20: 0 | J20: 0
A21: Zubereitung
A23: Blutwurst pellen, Zwiebeln und Knoblauch anschwitzen und mit den Gewürzen durchmischen
A24: ausgestochenen Teig rundrum anfeuchten, mit Blutwurstmasse füllen und Ravioli herstellen
A25: Zwiebeln anschwitzen, mit Kalbsfond ablöschen und einkochen lassen
A26: Ravioli entweder in Salzwasser oder Fleischbrühe garziehen lassen und auf Zwiebelschmeze anrichten

Sheet Hauptgang
E1: Chochete vom | F1: =SUM(Menu!B3) -> 2023-02-23 | I1: Original Rezept
A2: =Menu!B9 -> Flank Steak | E2: Rezept für | F2: 4 | I2: 4 | J2: Personen | L2: Menu Angaben wie folgt machen:
A3: Menge | B3: Einheit | C3: Artikel (Gewicht alles ca. Angaben) | D3: Bemerkungen | E3: Einkaufspreis | F3: Betrag | I3: Originalrezept | J3: pro Person
A4: =ROUND(SUM(J4*$F$2),2) -> 0.7 | B4: kg | C4: Flank Steak | D4: pro Person hier ca.150gr. | F4: =SUM(E4*A4) -> 0 | I4: 0.7 | J4: =I4/$I$2 -> 0.175 | L4: Kg | M4: 0.25
A5: =ROUND(SUM(J5*$F$2),2) -> 0 | F5: 0 | J5: 0 | L5: Lt | M5: 1.25
A6: =ROUND(SUM(J6*$F$2),2) -> 4 | B6: EL | C6: Senf | F6: 0 | I6: 4 | J6: 1 | L6: EL | M6: Esslöffel
A7: 2 | B7: Stk | C7: Knoblauchzehen | F7: 0 | I7: 2 | J7: 0.5 | L7: TL | M7: Kaffeelöffel
A8: 1 | B8: EL | C8: Rosmarin, fein gehackt | F8: 0 | I8: 1 | J8: 0.25 | L8: Bund | M8: 1
A9: 0 | C9: Salz, Pfeffer | F9: 0 | J9: 0 | L9: Stk | M9: Stück
A10: =ROUND(SUM(J10*$F$2),2) -> 0.1 | C10: Rapsöl | F10: 0 | I10: 0.1 | J10: 0.025 | L10: Pä | M10: Päckli
A11: =ROUND(SUM(J11*$F$2),2) -> 0 | F11: 0 | J11: 0 | L11: alles weitere ausschreiben
A12: 0 | F12: 0 | J12: 0
A13: =ROUND(SUM(J13*$F$2),2) -> 0 | F13: 0 | J13: 0
A14: 0 | F14: 0 | J14: 0
A15: 0 | F15: 0 | J15: 0
A16: 0 | F16: 0 | J16: =I16/$I$2 -> 0
A17: 0 | F17: 0 | J17: 0
A18: 0 | F18: 0 | J18: 0
A19: 0 | F19: 0 | J19: 0
A20: 0 | F20: =SUM(E20*A20) -> 0 | J20: 0
A21: Zubereitung
A22: Flank-Steak eine Stunde vor dem Zubereiten aus dem Kühlschrank nehmen. In der Bratpfanne auf beiden Seiten 2 bis 3 Minuten anbraten. Hitze reduzieren und das Steak auf beiden Seiten nochmals etwa 7 Minuten fertig garen. Hat das Steak eine Kerntemperatur von 56 °C, ist es perfekt und schön rosa. Das Fleisch aus der Pfanne nehmen, in Alufolie wickeln und 4 Minuten nachziehen lassen. Aus der Alufolie nehmen und in etwa 2 cm breite Streifen, quer zur Faser, schneiden.

Sheet Beilage1
E1: Chochete vom | F1: =SUM(Menu!B3) -> 2023-02-23 | I1: Original Rezept
A2: =Menu!B10 -> 0 | E2: Rezept für | F2: 4 | I2: 4 | J2: Personen | L2: Menu Angaben wie folgt machen:
A3: Menge | B3: Einheit | C3: Artikel (Gewicht alles ca. Angaben) | D3: Bemerkungen | E3: Einkaufspreis | F3: Betrag | I3: Originalrezept | J3: pro Person
A4: =ROUND(SUM(J4*$F$2),2) -> 0 | F4: =SUM(E4*A4) -> 0 | J4: =I4/$I$2 -> 0 | L4: Kg | M4: 0.25
A5: 0 | F5: 0 | J5: 0 | L5: Lt | M5: 1.25
A6: 0 | F6: 0 | J6: 0 | L6: EL | M6: Esslöffel
A7: 0 | F7: 0 | J7: 0 | L7: TL | M7: Kaffeelöffel
A8: 0 | F8: 0 | J8: 0 | L8: Bund | M8: 1
A9: 0 | F9: 0 | J9: 0 | L9: Stk | M9: Stück
A10: 0 | F10: 0 | J10: 0 | L10: Pä | M10: Päckli
A11: 0 | F11: 0 | J11: 0 | L11: alles weitere ausschreiben
A12: 0 | F12: 0 | J12: 0
A13: 0 | F13: 0 | J13: 0
A14: 0 | F14: 0 | J14: 0
A15: 0 | F15: 0 | J15: 0
A16: 0 | F16: 0 | J16: 0
A17: 0 | F17: 0 | J17: 0
A18: 0 | F18: 0 | J18: 0
A19: 0 | F19: 0 | J19: 0
A20: 0 | F20: 0 | J20: 0
A21: Zubereitung

Sheet Beilage2
E1: Chochete vom | F1: =SUM(Menu!B3) -> 2023-02-23 | I1: Original Rezept
A2: =Menu!B11 -> Ofengemüse | E2: Rezept für | F2: 4 | I2: 4 | J2: Personen | L2: Menu Angaben wie folgt machen:
A3: Menge | B3: Einheit | C3: Artikel (Gewicht alles ca. Angaben) | D3: Bemerkungen | E3: Einkaufspreis | F3: Betrag | I3: Originalrezept | J3: pro Person
A4: =ROUND(SUM(J4*$F$2),2) -> 2 | B4: Stk | C4: grosse Rüebli | F4: =SUM(E4*A4) -> 0 | I4: 2 | J4: =I4/$I$2 -> 0.5 | L4: Kg | M4: 0.25
A5: 1 | B5: Stk | C5: mittelgrosse Zucchetti | F5: 0 | I5: 1 | J5: 0.25 | L5: Lt | M5: 1.25
A6: 1 | B6: Stk | C6: kleiner Blumenkohl | F6: 0 | I6: 1 | J6: 0.25 | L6: EL | M6: Esslöffel
A7: 1 | B7: Stk | C7: Peperoni | F7: 0 | I7: 1 | J7: 0.25 | L7: TL | M7: Kaffeelöffel
A8: 2 | B8: Stk | C8: mittelgrosse Zwiebeln | F8: 0 | I8: 2 | J8: 0.5 | L8: Bund | M8: 1
A9: 4 | B9: Stk | C9: festkochende Kartoffeln | F9: 0 | I9: 4 | J9: 1 | L9: Stk | M9: Stück
A10: 2 | B10: Stk | C10: Knoblauchzehen | F10: 0 | I10: 2 | J10: 0.5 | L10: Pä | M10: Päckli
A11: 0 | F11: 0 | J11: 0 | L11: alles weitere ausschreiben
A12: 0 | F12: 0 | J12: 0
A13: 0 | F13: 0 | J13: 0
A14: 0 | F14: 0 | J14: 0
A15: 0 | F15: 0 | J15: 0
A16: 0 | F16: 0 | J16: 0
A17: 0 | F17: 0 | J17: 0
A18: 0 | F18: 0 | J18: 0
A19: 0 | F19: 0 | J19: 0
A20: 0 | F20: 0 | J20: 0
A21: Zubereitung
A22: Gemüse in mundgerechte Stücke teilen und die Knoblauchzehen fein hacken
A23: das ganze mit zwei, drei Esslöffel Rapsöl und feingehacktem Rosmarin vermischen
A24: Gemüse auf dem Backblech verteilen und mit grobem Salz und Peffer bestreuen
A25: 20 Minuten im auf 180°C vorgeheizten Backofen braten

Sheet Dessert
E1: Chochete vom | F1: =SUM(Menu!B3) -> 2023-02-23 | I1: Original Rezept
A2: =Menu!B13 -> Quarkkeulchen | E2: Rezept für | F2: 4 | I2: 16 | J2: Personen | L2: Menu Angaben wie folgt machen:
A3: Menge | B3: Einheit | C3: Artikel (Gewicht alles ca. Angaben) | D3: Bemerkungen | E3: Einkaufspreis | F3: Betrag | I3: Originalrezept | J3: pro Person
A4: =ROUND(SUM(J4*$F$2),2) -> 0.25 | B4: kg | C4: Kartoffeln | F4: =SUM(E4*A4) -> 0 | I4: 1 | J4: =I4/$I$2 -> 0.0625 | L4: Kg | M4: 0.25
A5: =ROUND(SUM(J5*$F$2),2) -> 0.19 | B5: kg | C5: Magerquark | D5: nach Belieben auch mehr | F5: =SUM(E5*A5) -> 0 | I5: 0.75 | J5: 0.046875 | L5: Lt | M5: 1.25
A6: =ROUND(SUM(J6*$F$2),2) -> 0.08 | B6: kg | C6: Weizenmehl | F6: 0 | I6: 0.3 | J6: 0.01875 | L6: EL | M6: Esslöffel
A7: 0.03 | B7: kg | C7: Zucker (wahlweise Zuckerfrei) | F7: 0 | I7: 0.13 | J7: 0.008125 | L7: KL | M7: Kaffeelöffel
A8: 1 | B8: Stk | C8: Eier (klein) | D8: eher nur ein Ei | F8: 0 | I8: 4 | J8: 0.25 | L8: Bund | M8: 1
A9: 0.13 | B9: TL | C9: Salz | F9: 0 | I9: 0.5 | J9: 0.03125 | L9: Stk | M9: Stück
A10: 0 | C10: geriebene Zitronenschale | F10: 0 | J10: 0 | L10: Pä | M10: Päckli
A11: 0 | C11: Rosinen (nach belieben) | F11: 0 | J11: 0 | L11: alles weitere ausschreiben
A12: 0 | F12: 0 | J12: 0
A13: 0 | F13: 0 | J13: 0
A14: 0 | F14: 0 | J14: 0
A15: 0 | F15: 0 | J15: 0
A16: 0 | F16: 0 | J16: 0
A17: 0 | F17: 0 | J17: 0
A18: 0 | F18: 0 | J18: 0
A19: 0 | F19: 0 | J19: 0
A20: 0 | F20: 0 | J20: 0
A21: Zubereitung
A22: Kartoffeln am Vortag kochen
A23: Kartoffeln noch warm reiben oder durch die Presse drücken
A24: alles, bis auf die Rosinen, vermengen
A25: Ist der Teig zu feucht, noch Gries oder Mehl zugeben
A26: mit angefeuchteten Händen Kugeln formen und zu einem Fladen flach drücken
A27: in Öl von beiden Seiten goldbraun braten
A28: Serviern mit Zucker, Zucker & Zimt oder/und Apfelmus

Sheet Diverses
E1: Chochete vom | F1: =SUM(Menu!B3) -> 2023-02-23 | I1: Original Rezept
A2: =Menu!B15 -> 0 | E2: Rezept für | F2: =SUM(Menu!B19) -> 16 | J2: Personen | L2: Menu Angaben wie folgt machen:
A3: Menge | B3: Einheit | C3: Artikel (Gewicht alles ca. Angaben) | D3: Bemerkungen | E3: Einkaufspreis | F3: Betrag | I3: Originalrezept | J3: pro Person
A4: =ROUND(SUM(J4*$F$2),2) ->  | F4: =SUM(E4*A4) ->  | J4: =I4/$I$2 ->  | L4: Kg | M4: 0.25
A5: =ROUND(SUM(J5*$F$2),2) ->  | F5: =SUM(E5*A5) ->  | L5: Lt | M5: 1.25
A6: =ROUND(SUM(J6*$F$2),2) ->  | L6: EL | M6: Esslöffel
L7: KL | M7: Kaffeelöffel
L8: Bund | M8: 1
L9: Stk | M9: Stück
L10: Pä | M10: Päckli
L11: alles weitere ausschreiben
A21: Zubereitung

Sheet Einkaufsliste
A1: Hobby-Küche Zug | C1: Einkaufsliste | D1: =Dessert!F1 -> 2023-02-23 | E1: ok
A2: Menge | B2: Einheit | C2: Artikel
A3: ='Vorspeise 1'!A2 -> Leberknödelsuppe | D3: Bemerkungen
A4: =SUM('Vorspeise 1'!A4) -> 0.21 | B4: ='Vorspeise 1'!B4 -> kg | C4: ='Vorspeise 1'!C4 -> Kalbsleber (gewolft) | D4: ='Vorspeise 1'!D4 -> 0
A5: =SUM('Vorspeise 1'!A5) -> 0.83 | B5: ='Vorspeise 1'!B5 -> Stk | C5: ='Vorspeise 1'!C5 -> Brötchen vom Vortag | D5: ='Vorspeise 1'!D5 -> in heisser Milch einweichen
A6: =SUM('Vorspeise 1'!A6) -> 0.02 | B6: ='Vorspeise 1'!B6 -> kg | C6: ='Vorspeise 1'!C6 -> Butter | D6: ='Vorspeise 1'!D6 -> 0
A7: =SUM('Vorspeise 1'!A7) -> 0.83 | B7: ='Vorspeise 1'!B7 -> Stk | C7: ='Vorspeise 1'!C7 -> Zwiebel | D7: ='Vorspeise 1'!D7 -> 0
A8: =SUM('Vorspeise 1'!A8) -> 0.83 | B8: ='Vorspeise 1'!B8 -> Stk | C8: ='Vorspeise 1'!C8 -> Knoblauchzehen | D8: ='Vorspeise 1'!D8 -> 0
A9: =SUM('Vorspeise 1'!A9) -> 1.67 | B9: ='Vorspeise 1'!B9 -> Stk | C9: ='Vorspeise 1'!C9 -> Eier | D9: ='Vorspeise 1'!D9 -> 0
A10: =SUM('Vorspeise 1'!A10) -> 0.42 | B10: ='Vorspeise 1'!B10 -> Bund | C10: ='Vorspeise 1'!C10 -> Petersilie | D10: ='Vorspeise 1'!D10 -> 0
A11: =SUM('Vorspeise 1'!A11) -> 0 | B11: ='Vorspeise 1'!B11 -> 0 | C11: ='Vorspeise 1'!C11 -> 0 | D11: ='Vorspeise 1'!D11 -> 0
A12: =SUM('Vorspeise 1'!A12) -> 0 | B12: ='Vorspeise 1'!B12 -> 0 | C12: ='Vorspeise 1'!C12 -> Möhre, Lauch grob geschnitten | D12: ='Vorspeise 1'!D12 -> 0
A13: =SUM('Vorspeise 1'!A13) -> 0 | B13: ='Vorspeise 1'!B13 -> 0 | C13: ='Vorspeise 1'!C13 -> 0 | D13: ='Vorspeise 1'!D13 -> 0
A14: =SUM('Vorspeise 1'!A14) -> 0 | B14: ='Vorspeise 1'!B14 -> 0 | C14: ='Vorspeise 1'!C14 -> Salz, Pfeffer, Muskat | D14: ='Vorspeise 1'!D14 -> 0
A15: =SUM('Vorspeise 1'!A15) -> 0 | B15: ='Vorspeise 1'!B15 -> 0 | C15: ='Vorspeise 1'!C15 -> Majoran | D15: ='Vorspeise 1'!D15 -> 0
A16: =SUM('Vorspeise 1'!A16) -> 0 | B16: ='Vorspeise 1'!B16 -> 0 | C16: ='Vorspeise 1'!C16 -> Zitronenschale (Bio) | D16: ='Vorspeise 1'!D16 -> 0
A17: =SUM('Vorspeise 1'!A17) -> 0 | B17: ='Vorspeise 1'!B17 -> 0 | C17: ='Vorspeise 1'!C17 -> Semmelbrösel | D17: ='Vorspeise 1'!D17 -> 0
A18: =SUM('Vorspeise 1'!A18) -> 1.67 | B18: ='Vorspeise 1'!B18 -> Ltr | C18: ='Vorspeise 1'!C18 -> Fleischbrühe mit Rinderfond | D18: ='Vorspeise 1'!D18 -> 0
A19: =SUM('Vorspeise 1'!A19) -> 0.83 | B19: ='Vorspeise 1'!B19 -> Bund | C19: ='Vorspeise 1'!C19 -> Schnittlauch | D19: ='Vorspeise 1'!D19 -> 0
A20: =SUM('Vorspeise 1'!A20) -> 0 | B20: ='Vorspeise 1'!B20 -> 0 | C20: ='Vorspeise 1'!C20 -> 0 | D20: ='Vorspeise 1'!D20 -> 0
A21: ='Vorspeise 2'!A2 -> Blutwurst-Ravioli mit Zwiebelschmelze | D21: Bemerkungen
A22: =SUM('Vorspeise 2'!A4) -> 0.15 | B22: ='Vorspeise 2'!B4 -> kg | C22: ='Vorspeise 2'!C4 -> Mehl | D22: ='Vorspeise 2'!D4 -> 0
A23: =SUM('Vorspeise 2'!A5) -> 0.15 | B23: ='Vorspeise 2'!B5 -> kg | C23: ='Vorspeise 2'!C5 -> Gries | D23: ='Vorspeise 2'!D5 -> 0
A24: =SUM('Vorspeise 2'!A6) -> 3 | B24: ='Vorspeise 2'!B6 -> Stk | C24: ='Vorspeise 2'!C6 -> Eier | D24: ='Vorspeise 2'!D6 -> 0
A25: =SUM('Vorspeise 2'!A7) -> 1 | B25: ='Vorspeise 2'!B7 -> El | C25: ='Vorspeise 2'!C7 -> Olivenöl | D25: ='Vorspeise 2'!D7 -> 0
A26: =SUM('Vorspeise 2'!A8) -> 0.5 | B26: ='Vorspeise 2'!B8 -> Tl | C26: ='Vorspeise 2'!C8 -> Salz | D26: ='Vorspeise 2'!D8 -> 0
A27: =SUM('Vorspeise 2'!A9) -> 0 | B27: ='Vorspeise 2'!B9 -> 0 | C27: ='Vorspeise 2'!C9 -> 0 | D27: ='Vorspeise 2'!D9 -> 0
A28: =SUM('Vorspeise 2'!A10) -> 0.3 | B28: ='Vorspeise 2'!B10 -> kg | C28: ='Vorspeise 2'!C10 -> Blutwurst | D28: ='Vorspeise 2'!D10 -> 0
A29: =SUM('Vorspeise 2'!A11) -> 2 | B29: ='Vorspeise 2'!B11 -> Stk | C29: ='Vorspeise 2'!C11 -> Schalotten | D29: ='Vorspeise 2'!D11 -> 0
A30: =SUM('Vorspeise 2'!A12) -> 1 | B30: ='Vorspeise 2'!B12 -> Stk | C30: ='Vorspeise 2'!C12 -> Knoblauchzehen | D30: ='Vorspeise 2'!D12 -> 0
A31: =SUM('Vorspeise 2'!A13) -> 0 | B31: ='Vorspeise 2'!B13 -> 0 | C31: ='Vorspeise 2'!C13 -> Olivenöl | D31: ='Vorspeise 2'!D13 -> 0
A32: =SUM('Vorspeise 2'!A14) -> 0 | B32: ='Vorspeise 2'!B14 -> 0 | C32: ='Vorspeise 2'!C14 -> Majoran, Kümmel, Salz | D32: ='Vorspeise 2'!D14 -> 0
A33: =SUM('Vorspeise 2'!A15) -> 0.02 | B33: ='Vorspeise 2'!B15 -> kg | C33: ='Vorspeise 2'!C15 -> Butter | D33: ='Vorspeise 2'!D15 -> 0
A34: =SUM('Vorspeise 2'!A16) -> 0 | B34: ='Vorspeise 2'!B16 -> 0 | C34: ='Vorspeise 2'!C16 -> 0 | D34: ='Vorspeise 2'!D16 -> 0
A35: =SUM('Vorspeise 2'!A17) -> 3 | B35: ='Vorspeise 2'!B17 -> Stk | C35: ='Vorspeise 2'!C17 -> Zwiebeln | D35: ='Vorspeise 2'!D17 -> nach belieben
A36: =SUM('Vorspeise 2'!A18) -> 0.08 | B36: ='Vorspeise 2'!B18 -> Ltr | C36: ='Vorspeise 2'!C18 -> Kalbsfond | D36: ='Vorspeise 2'!D18 -> 0
A37: =SUM('Vorspeise 2'!A19) -> 0 | B37: ='Vorspeise 2'!B19 -> 0 | C37: ='Vorspeise 2'!C19 -> Majoran | D37: ='Vorspeise 2'!D19 -> 0
A38: =SUM('Vorspeise 2'!A20) -> 0 | B38: ='Vorspeise 2'!B20 -> 0 | C38: ='Vorspeise 2'!C20 -> weisser Pfeffer | D38: ='Vorspeise 2'!D20 -> 0
A39: =Hauptgang!A2 -> Flank Steak | D39: Bemerkungen
A40: =SUM(Hauptgang!A4) -> 0.7 | B40: =Hauptgang!B4 -> kg | C40: =Hauptgang!C4 -> Flank Steak | D40: =Hauptgang!D4 -> pro Person hier ca.150gr.
A41: =SUM(Hauptgang!A5) -> 0 | B41: =Hauptgang!B5 -> 0 | C41: =Hauptgang!C5 -> 0 | D41: =Hauptgang!D5 -> 0
A42: =SUM(Hauptgang!A6) -> 4 | B42: =Hauptgang!B6 -> EL | C42: =Hauptgang!C6 -> Senf | D42: =Hauptgang!D6 -> 0
A43: =SUM(Hauptgang!A7) -> 2 | B43: =Hauptgang!B7 -> Stk | C43: =Hauptgang!C7 -> Knoblauchzehen | D43: =Hauptgang!D7 -> 0
A44: =SUM(Hauptgang!A8) -> 1 | B44: =Hauptgang!B8 -> EL | C44: =Hauptgang!C8 -> Rosmarin, fein gehackt | D44: =Hauptgang!D8 -> 0
A45: =SUM(Hauptgang!A9) -> 0 | B45: =Hauptgang!B9 -> 0 | C45: =Hauptgang!C9 -> Salz, Pfeffer | D45: =Hauptgang!D9 -> 0
A46: =SUM(Hauptgang!A10) -> 0.1 | B46: =Hauptgang!B10 -> 0 | C46: =Hauptgang!C10 -> Rapsöl | D46: =Hauptgang!D10 -> 0
A47: =SUM(Hauptgang!A11) -> 0 | B47: =Hauptgang!B11 -> 0 | C47: =Hauptgang!C11 -> 0 | D47: =Hauptgang!D11 -> 0
A48: =SUM(Hauptgang!A12) -> 0 | B48: =Hauptgang!B12 -> 0 | C48: =Hauptgang!C12 -> 0 | D48: =Hauptgang!D12 -> 0
A49: =SUM(Hauptgang!A13) -> 0 | B49: =Hauptgang!B13 -> 0 | C49: =Hauptgang!C13 -> 0 | D49: =Hauptgang!D13 -> 0
A50: =SUM(Hauptgang!A14) -> 0 | B50: =Hauptgang!B14 -> 0 | C50: =Hauptgang!C14 -> 0 | D50: =Hauptgang!D14 -> 0
A51: =SUM(Hauptgang!A15) -> 0 | B51: =Hauptgang!B15 -> 0 | C51: =Hauptgang!C15 -> 0 | D51: =Hauptgang!D15 -> 0
A52: =SUM(Hauptgang!A16) -> 0 | B52: =Hauptgang!B16 -> 0 | C52: =Hauptgang!C16 -> 0 | D52: =Hauptgang!D16 -> 0
A53: =SUM(Hauptgang!A17) -> 0 | B53: =Hauptgang!B17 -> 0 | C53: =Hauptgang!C17 -> 0 | D53: =Hauptgang!D17 -> 0
A54: =SUM(Hauptgang!A18) -> 0 | B54: =Hauptgang!B18 -> 0 | C54: =Hauptgang!C18 -> 0 | D54: =Hauptgang!D18 -> 0
A55: =SUM(Hauptgang!A19) -> 0 | B55: =Hauptgang!B19 -> 0 | C55: =Hauptgang!C19 -> 0 | D55: =Hauptgang!D19 -> 0
A56: =SUM(Hauptgang!A20) -> 0 | B56: =Hauptgang!B20 -> 0 | C56: =Hauptgang!C20 -> 0 | D56: =Hauptgang!D20 -> 0
A57: =Beilage1!A2 -> 0 | D57: Bemerkungen
A58: =Beilage1!A4 -> 0 | B58: =Beilage1!B4 -> 0 | C58: =Beilage1!C4 -> 0 | D58: =Beilage1!D4 -> 0
A59: =Beilage1!A5 -> 0 | B59: =Beilage1!B5 -> 0 | C59: =Beilage1!C5 -> 0 | D59: =Beilage1!D5 -> 0
A60: =Beilage1!A6 -> 0 | B60: =Beilage1!B6 -> 0 | C60: =Beilage1!C6 -> 0 | D60: =Beilage1!D6 -> 0
A61: =Beilage1!A7 -> 0 | B61: =Beilage1!B7 -> 0 | C61: =Beilage1!C7 -> 0 | D61: =Beilage1!D7 -> 0
A62: =Beilage1!A8 -> 0 | B62: =Beilage1!B8 -> 0 | C62: =Beilage1!C8 -> 0 | D62: =Beilage1!D8 -> 0
A63: =Beilage1!A9 -> 0 | B63: =Beilage1!B9 -> 0 | C63: =Beilage1!C9 -> 0 | D63: =Beilage1!D9 -> 0
A64: =Beilage1!A10 -> 0 | B64: =Beilage1!B10 -> 0 | C64: =Beilage1!C10 -> 0 | D64: =Beilage1!D10 -> 0
A65: =Beilage1!A11 -> 0 | B65: =Beilage1!B11 -> 0 | C65: =Beilage1!C11 -> 0 | D65: =Beilage1!D11 -> 0
A66: =Beilage1!A12 -> 0 | B66: =Beilage1!B12 -> 0 | C66: =Beilage1!C12 -> 0 | D66: =Beilage1!D12 -> 0
A67: =Beilage1!A13 -> 0 | B67: =Beilage1!B13 -> 0 | C67: =Beilage1!C13 -> 0 | D67: =Beilage1!D13 -> 0
A68: =Beilage1!A14 -> 0 | B68: =Beilage1!B14 -> 0 | C68: =Beilage1!C14 -> 0 | D68: =Beilage1!D14 -> 0
A69: =Beilage1!A15 -> 0 | B69: =Beilage1!B15 -> 0 | C69: =Beilage1!C15 -> 0 | D69: =Beilage1!D15 -> 0
A70: =Beilage1!A16 -> 0 | B70: =Beilage1!B16 -> 0 | C70: =Beilage1!C16 -> 0 | D70: =Beilage1!D16 -> 0
A71: =Beilage1!A17 -> 0 | B71: =Beilage1!B17 -> 0 | C71: =Beilage1!C17 -> 0 | D71: =Beilage1!D17 -> 0
A72: =Beilage1!A18 -> 0 | B72: =Beilage1!B18 -> 0 | C72: =Beilage1!C18 -> 0 | D72: =Beilage1!D18 -> 0
A73: =Beilage1!A19 -> 0 | B73: =Beilage1!B19 -> 0 | C73: =Beilage1!C19 -> 0 | D73: =Beilage1!D19 -> 0
A74: =Beilage1!A20 -> 0 | B74: =Beilage1!B20 -> 0 | C74: =Beilage1!C20 -> 0 | D74: =Beilage1!D20 -> 0
A75: =Beilage2!A2 -> Ofengemüse
A76: =SUM(Beilage2!A4) -> 2 | B76: =Beilage2!B4 -> Stk | C76: =Beilage2!C4 -> grosse Rüebli | D76: =Beilage2!D4 -> 0
A77: =SUM(Beilage2!A5) -> 1 | B77: =Beilage2!B5 -> Stk | C77: =Beilage2!C5 -> mittelgrosse Zucchetti | D77: =Beilage2!D5 -> 0
A78: =SUM(Beilage2!A6) -> 1 | B78: =Beilage2!B6 -> Stk | C78: =Beilage2!C6 -> kleiner Blumenkohl | D78: =Beilage2!D6 -> 0
A79: =SUM(Beilage2!A7) -> 1 | B79: =Beilage2!B7 -> Stk | C79: =Beilage2!C7 -> Peperoni | D79: =Beilage2!D7 -> 0
A80: =SUM(Beilage2!A8) -> 2 | B80: =Beilage2!B8 -> Stk | C80: =Beilage2!C8 -> mittelgrosse Zwiebeln | D80: =Beilage2!D8 -> 0
A81: =SUM(Beilage2!A9) -> 4 | B81: =Beilage2!B9 -> Stk | C81: =Beilage2!C9 -> festkochende Kartoffeln | D81: =Beilage2!D9 -> 0
A82: =SUM(Beilage2!A10) -> 2 | B82: =Beilage2!B10 -> Stk | C82: =Beilage2!C10 -> Knoblauchzehen | D82: =Beilage2!D10 -> 0
A83: =SUM(Beilage2!A11) -> 0 | B83: =Beilage2!B11 -> 0 | C83: =Beilage2!C11 -> 0 | D83: =Beilage2!D11 -> 0
A84: =SUM(Beilage2!A12) -> 0 | B84: =Beilage2!B12 -> 0 | C84: =Beilage2!C12 -> 0 | D84: =Beilage2!D12 -> 0
A85: =SUM(Beilage2!A13) -> 0 | B85: =Beilage2!B13 -> 0 | C85: =Beilage2!C13 -> 0 | D85: =Beilage2!D13 -> 0
A86: =SUM(Beilage2!A14) -> 0 | B86: =Beilage2!B14 -> 0 | C86: =Beilage2!C14 -> 0 | D86: =Beilage2!D14 -> 0
A87: =SUM(Beilage2!A15) -> 0 | B87: =Beilage2!B15 -> 0 | C87: =Beilage2!C15 -> 0 | D87: =Beilage2!D15 -> 0
A88: =SUM(Beilage2!A16) -> 0 | B88: =Beilage2!B16 -> 0 | C88: =Beilage2!C16 -> 0 | D88: =Beilage2!D16 -> 0
A89: =SUM(Beilage2!A17) -> 0 | B89: =Beilage2!B17 -> 0 | C89: =Beilage2!C17 -> 0 | D89: =Beilage2!D17 -> 0
A90: =SUM(Beilage2!A18) -> 0 | B90: =Beilage2!B18 -> 0 | C90: =Beilage2!C18 -> 0 | D90: =Beilage2!D18 -> 0
A91: =SUM(Beilage2!A19) -> 0 | B91: =Beilage2!B19 -> 0 | C91: =Beilage2!C19 -> 0 | D91: =Beilage2!D19 -> 0
A92: =SUM(Beilage2!A20) -> 0 | B92: =Beilage2!B20 -> 0 | C92: =Beilage2!C20 -> 0 | D92: =Beilage2!D20 -> 0
A93: =Dessert!A2 -> Quarkkeulchen | D93: Bemerkungen
A94: =SUM(Dessert!A4) -> 0.25 | B94: =Dessert!B4 -> kg | C94: =Dessert!C4 -> Kartoffeln | D94: =Dessert!D4 -> 0
A95: =SUM(Dessert!A5) -> 0.19 | B95: =Dessert!B5 -> kg | C95: =Dessert!C5 -> Magerquark | D95: =Dessert!D5 -> nach Belieben auch mehr
A96: =SUM(Dessert!A6) -> 0.08 | B96: =Dessert!B6 -> kg | C96: =Dessert!C6 -> Weizenmehl | D96: =Dessert!D6 -> 0
A97: =SUM(Dessert!A7) -> 0.03 | B97: =Dessert!B7 -> kg | C97: =Dessert!C7 -> Zucker (wahlweise Zuckerfrei) | D97: =Dessert!D7 -> 0
A98: =SUM(Dessert!A8) -> 1 | B98: =Dessert!B8 -> Stk | C98: =Dessert!C8 -> Eier (klein) | D98: =Dessert!D8 -> eher nur ein Ei
A99: =SUM(Dessert!A9) -> 0.13 | B99: =Dessert!B9 -> TL | C99: =Dessert!C9 -> Salz | D99: =Dessert!D9 -> 0
A100: =SUM(Dessert!A10) -> 0 | B100: =Dessert!B10 -> 0 | C100: =Dessert!C10 -> geriebene Zitronenschale | D100: =Dessert!D10 -> 0
A101: =SUM(Dessert!A11) -> 0 | B101: =Dessert!B11 -> 0 | C101: =Dessert!C11 -> Rosinen (nach belieben) | D101: =Dessert!D11 -> 0
A102: =SUM(Dessert!A12) -> 0 | B102: =Dessert!B12 -> 0 | C102: =Dessert!C12 ->  | D102: =Dessert!D12 -> 0
A103: =SUM(Dessert!A13) -> 0 | B103: =Dessert!B13 -> 0 | C103: =Dessert!C13 -> 0 | D103: =Dessert!D13 -> 0
A104: =SUM(Dessert!A14) -> 0 | B104: =Dessert!B14 -> 0 | C104: =Dessert!C14 -> 0 | D104: =Dessert!D14 -> 0
A105: =SUM(Dessert!A15) -> 0 | B105: =Dessert!B15 -> 0 | C105: =Dessert!C15 -> 0 | D105: =Dessert!D15 -> 0
A106: =SUM(Dessert!A16) -> 0 | B106: =Dessert!B16 -> 0 | C106: =Dessert!C16 -> 0 | D106: =Dessert!D16 -> 0
A107: =SUM(Dessert!A17) -> 0 | B107: =Dessert!B17 -> 0 | C107: =Dessert!C17 -> 0 | D107: =Dessert!D17 -> 0
A108: =SUM(Dessert!A18) -> 0 | B108: =Dessert!B18 -> 0 | C108: =Dessert!C18 -> 0 | D108: =Dessert!D18 -> 0
A109: =SUM(Dessert!A19) -> 0 | B109: =Dessert!B19 -> 0 | C109: =Dessert!C19 -> 0 | D109: =Dessert!D19 -> 0
A110: =SUM(Dessert!A20) -> 0 | B110: =Dessert!B20 -> 0 | C110: =Dessert!C20 -> 0 | D110: =Dessert!D20 -> 0
A113: =SUM(Diverses!A4) ->  | B113: =Diverses!B4 -> 0 | C113: =Diverses!C4 -> 0 | D113: =Diverses!D4 -> 0
A114: =SUM(Diverses!A5) ->  | B114: =Diverses!B5 -> 0 | C114: =Diverses!C5 -> 0 | D114: =Diverses!D5 -> 0
A115: =SUM(Diverses!A6) ->  | B115: =Diverses!B6 -> 0 | C115: =Diverses!C6 -> 0 | D115: =Diverses!D6 -> 0
A116: =SUM(Diverses!A7) ->  | B116: =Diverses!B7 -> 0 | C116: =Diverses!C7 -> 0 | D116: =Diverses!D7 -> 0
A117: =SUM(Diverses!A8) ->  | B117: =Diverses!B8 -> 0 | C117: =Diverses!C8 -> 0 | D117: =Diverses!D8 -> 0
A118: =SUM(Diverses!A9) ->  | B118: =Diverses!B9 -> 0 | C118: =Diverses!C9 -> 0 | D118: =Diverses!D9 -> 0
A119: =SUM(Diverses!A10) ->  | B119: =Diverses!B10 -> 0 | C119: =Diverses!C10 -> 0 | D119: =Diverses!D10 -> 0
A120: =SUM(Diverses!A11) ->  | B120: =Diverses!B11 -> 0 | C120: =Diverses!C11 -> 0 | D120: =Diverses!D11 -> 0
A121: =SUM(Diverses!A12) ->  | B121: =Diverses!B12 -> 0 | C121: =Diverses!C12 -> 0 | D121: =Diverses!D12 -> 0
A122: =SUM(Diverses!A13) ->  | B122: =Diverses!B13 -> 0 | C122: =Diverses!C13 -> 0 | D122: =Diverses!D13 -> 0
A123: =SUM(Diverses!A14) ->  | B123: =Diverses!B14 -> 0 | C123: =Diverses!C14 -> 0 | D123: =Diverses!D14 -> 0
A124: =SUM(Diverses!A15) ->  | B124: =Diverses!B15 -> 0 | C124: =Diverses!C15 -> 0 | D124: =Diverses!D15 -> 0
A125: =SUM(Diverses!A16) ->  | B125: =Diverses!B16 -> 0 | C125: =Diverses!C16 -> 0 | D125: =Diverses!D16 -> 0
A126: =SUM(Diverses!A17) ->  | B126: =Diverses!B17 -> 0 | C126: =Diverses!C17 -> 0 | D126: =Diverses!D17 -> 0
A127: =SUM(Diverses!A18) ->  | B127: =Diverses!B18 -> 0 | C127: =Diverses!C18 -> 0 | D127: =Diverses!D18 -> 0
A128: =SUM(Diverses!A19) ->  | B128: =Diverses!B19 -> 0 | C128: =Diverses!C19 -> 0 | D128: =Diverses!D19 -> 0
A129: =SUM(Diverses!A20) ->  | B129: =Diverses!B20 -> 0 | C129: =Diverses!C20 -> 0 | D129: =Diverses!D20 -> 0
A130: =SUM(Dessert!A22) -> 0 | B130: =Dessert!B24 -> 0 | C130: =Dessert!C24 -> 0
A131: =SUM(Dessert!A23) -> 0 | B131: =Dessert!B25 -> 0 | C131: =Dessert!C25 -> 0
A132: =SUM(Dessert!A26) -> 0 | B132: =Dessert!B26 -> 0 | C132: =Dessert!C26 -> 0
A145: =SUM(Dessert!A27) -> 0 | B145: =Dessert!B27 -> 0 | C145: =Dessert!C27 -> 0
A146: =SUM(Dessert!A28) -> 0 | B146: =Dessert!B28 -> 0 | C146: =Dessert!C28 -> 0
A147: =SUM(Dessert!A29) -> 0 | B147: =Dessert!B29 -> 0 | C147: =Dessert!C29 -> 0
A148: =SUM(Dessert!A30) -> 0 | B148: =Dessert!B30 -> 0 | C148: =Dessert!C30 -> 0
A149: =SUM(Dessert!A31) -> 0 | B149: =Dessert!B31 -> 0 | C149: =Dessert!C31 -> 0
A150: =SUM(Dessert!A32) -> 0 | B150: =Dessert!B32 -> 0 | C150: =Dessert!C32 -> 0
